[Event "December 12 Early 2023"]
[Site "https://www.chess.com"]
[Date "2023.12.12"]
[Round "11"]
[White "Khromkin, Andrey"]
[Black "NovakRatko"]
[Result "1-0"]
[Board "102"]
[TimeControl "180+1"]
[WhiteFideId "4154126"]
[WhiteElo "2440"]
[BlackElo "2365"]
[WhiteTeam "RUS"]
[WhiteClock "0:00:29"]
[BlackClock "0:00:16"]

1. d4 {[%clk 0:03:00]}  d5 {[%clk 0:02:59]} 2. c4 {[%clk 0:03:00]}  c5 {[%clk 0:02:59]} 3. cxd5 {[%clk 0:03:00]}  Qxd5 {[%clk 0:03:00]} 4. Nf3 {[%clk 0:02:57]}  cxd4 {[%clk 0:03:00]} 5. Nc3 {[%clk 0:02:57]}  Qa5 {[%clk 0:03:00]} 6. Nxd4 {[%clk 0:02:57]}  e5 {[%clk 0:03:00]} 7. Nb3 {[%clk 0:02:58]}  Qc7 {[%clk 0:03:00]} 8. g3 {[%clk 0:02:57]}  Bb4 {[%clk 0:02:58]} 9. Bd2 {[%clk 0:02:55]}  Nf6 {[%clk 0:02:58]} 10. Bg2 {[%clk 0:02:55]}  O-O {[%clk 0:02:59]} 11. O-O {[%clk 0:02:53]}  Rd8 {[%clk 0:02:59]} 12. Qc1 {[%clk 0:02:53]}  Nc6 {[%clk 0:02:57]} 13. a3 {[%clk 0:02:44]}  Be6 {[%clk 0:02:52]} 14. axb4 {[%clk 0:02:03]}  Bxb3 {[%clk 0:02:50]} 15. Bg5 {[%clk 0:01:51]}  Nd4 {[%clk 0:02:47]} 16. Bxf6 {[%clk 0:01:43]}  gxf6 {[%clk 0:02:46]} 17. Qh6 {[%clk 0:01:35]}  f5 {[%clk 0:02:25]} 18. Qg5+ {[%clk 0:01:16]}  Kh8 {[%clk 0:02:17]} 19. e3 {[%clk 0:01:14]}  Ne6 {[%clk 0:01:32]} 20. Qxf5 {[%clk 0:01:12]}  Ng7 {[%clk 0:01:29]} 21. Qh3 {[%clk 0:01:05]}  Be6 {[%clk 0:01:24]} 22. Qh4 {[%clk 0:01:02]}  Rd2 {[%clk 0:01:22]} 23. Ne4 {[%clk 0:01:02]}  Rxb2 {[%clk 0:01:19]} 24. Nf6 {[%clk 0:01:01]}  Bf5 {[%clk 0:01:17]} 25. Be4 {[%clk 0:00:56]}  Bxe4 {[%clk 0:01:17]} 26. Qxe4 {[%clk 0:00:55]}  Nf5 {[%clk 0:00:48]} 27. Qxf5 {[%clk 0:00:55]}  Kg7 {[%clk 0:00:49]} 28. Nh5+ {[%clk 0:00:51]}  Kf8 {[%clk 0:00:46]} 29. Qf6 {[%clk 0:00:50]}  Rc8 {[%clk 0:00:41]} 30. Rad1 {[%clk 0:00:44]}  Rxb4 {[%clk 0:00:27]} 31. Rd5 {[%clk 0:00:37]}  Rb6 {[%clk 0:00:26]} 32. Qg7+ {[%clk 0:00:34]}  Ke7 {[%clk 0:00:27]} 33. Rxe5+ {[%clk 0:00:34]}  Re6 {[%clk 0:00:27]} 34. Qf6+ {[%clk 0:00:31]}  Ke8 {[%clk 0:00:16]} 35. Ng7+ {[%clk 0:00:29]} 1-0

[Event "December 12 Early 2023"]
[Site "https://www.chess.com"]
[Date "2023.12.12"]
[Round "11"]
[White "La Villa Rivas, Marlon Javier"]
[Black "Aalto, Patrik"]
[Result "1/2-1/2"]
[Board "103"]
[TimeControl "180+1"]
[WhiteFideId "3519546"]
[BlackFideId "510726"]
[WhiteElo "2358"]
[BlackElo "2438"]
[WhiteTeam "CUB"]
[BlackTeam "FIN"]
[WhiteClock "0:00:14"]
[BlackClock "0:00:05"]

1. e4 {[%clk 0:03:00]}  c5 {[%clk 0:02:59]} 2. Nf3 {[%clk 0:03:00]}  e6 {[%clk 0:02:59]} 3. d4 {[%clk 0:03:00]}  cxd4 {[%clk 0:03:00]} 4. Nxd4 {[%clk 0:03:00]}  Nc6 {[%clk 0:03:01]} 5. Nc3 {[%clk 0:03:00]}  Qc7 {[%clk 0:03:02]} 6. Be2 {[%clk 0:02:58]}  a6 {[%clk 0:03:01]} 7. Be3 {[%clk 0:02:58]}  Nf6 {[%clk 0:03:00]} 8. O-O {[%clk 0:02:57]}  Be7 {[%clk 0:03:01]} 9. f4 {[%clk 0:02:55]}  d6 {[%clk 0:03:01]} 10. Kh1 {[%clk 0:02:55]}  O-O {[%clk 0:03:01]} 11. Qe1 {[%clk 0:02:55]}  Nxd4 {[%clk 0:03:00]} 12. Bxd4 {[%clk 0:02:55]}  b5 {[%clk 0:03:00]} 13. e5 {[%clk 0:02:43]}  dxe5 {[%clk 0:02:59]} 14. Bxe5 {[%clk 0:02:43]}  Qb6 {[%clk 0:02:52]} 15. Bd3 {[%clk 0:02:22]}  Bb7 {[%clk 0:02:49]} 16. Qh4 {[%clk 0:02:19]}  h6 {[%clk 0:02:30]} 17. Rae1 {[%clk 0:02:12]}  b4 {[%clk 0:02:22]} 18. Ne2 {[%clk 0:02:02]}  Qc6 {[%clk 0:02:10]} 19. Qh3 {[%clk 0:02:00]}  Nd5 {[%clk 0:01:50]} 20. Nd4 {[%clk 0:01:57]}  Qd7 {[%clk 0:01:46]} 21. f5 {[%clk 0:01:54]}  exf5 {[%clk 0:01:34]} 22. Bxf5 {[%clk 0:01:51]}  Qd8 {[%clk 0:01:28]} 23. Qg3 {[%clk 0:01:28]}  Bf6 {[%clk 0:01:23]} 24. Bd3 {[%clk 0:01:22]}  Bxe5 {[%clk 0:01:14]} 25. Rxe5 {[%clk 0:01:23]}  Qc7 {[%clk 0:01:04]} 26. Nf5 {[%clk 0:01:19]}  g6 {[%clk 0:00:43]} 27. Nxh6+ {[%clk 0:01:16]}  Kg7 {[%clk 0:00:43]} 28. Nf5+ {[%clk 0:01:14]}  Kg8 {[%clk 0:00:41]} 29. Qh4 {[%clk 0:00:53]}  Qxe5 {[%clk 0:00:30]} 30. Re1 {[%clk 0:00:45]}  Qf6 {[%clk 0:00:19]} 31. Nh6+ {[%clk 0:00:34]}  Kg7 {[%clk 0:00:18]} 32. Qh3 {[%clk 0:00:29]}  Rh8 {[%clk 0:00:18]} 33. Qd7 {[%clk 0:00:28]}  Rxh6 {[%clk 0:00:14]} 34. Qxb7 {[%clk 0:00:29]}  Rah8 {[%clk 0:00:12]} 35. h3 {[%clk 0:00:27]}  Rxh3+ {[%clk 0:00:12]} 36. gxh3 {[%clk 0:00:27]}  Rxh3+ {[%clk 0:00:13]} 37. Kg1 {[%clk 0:00:27]}  Qg5+ {[%clk 0:00:11]} 38. Kf1 {[%clk 0:00:26]}  Rf3+ {[%clk 0:00:07]} 39. Ke2 {[%clk 0:00:24]}  Re3+ {[%clk 0:00:07]} 40. Kd1 {[%clk 0:00:24]}  Qg4+ {[%clk 0:00:07]} 41. Be2 {[%clk 0:00:22]}  Rxe2 {[%clk 0:00:08]} 42. Rxe2 {[%clk 0:00:22]}  Nf4 {[%clk 0:00:08]} 43. Qxa6 {[%clk 0:00:20]}  Nxe2 {[%clk 0:00:07]} 44. Qxe2 {[%clk 0:00:20]}  Qd4+ {[%clk 0:00:02]} 45. Kc1 {[%clk 0:00:17]}  Qg1+ {[%clk 0:00:03]} 46. Kd2 {[%clk 0:00:17]}  Qd4+ {[%clk 0:00:03]} 47. Kc1 {[%clk 0:00:17]}  Qg1+ {[%clk 0:00:03]} 48. Qd1 {[%clk 0:00:17]}  Qxd1+ {[%clk 0:00:02]} 49. Kxd1 {[%clk 0:00:18]}  g5 {[%clk 0:00:02]} 50. a4 {[%clk 0:00:19]}  bxa3 {[%clk 0:00:02]} 51. bxa3 {[%clk 0:00:19]}  Kf6 {[%clk 0:00:03]} 52. Ke2 {[%clk 0:00:19]}  Ke5 {[%clk 0:00:03]} 53. Kf3 {[%clk 0:00:20]}  Kd5 {[%clk 0:00:03]} 54. Kg4 {[%clk 0:00:17]}  f6 {[%clk 0:00:03]} 55. Kf5 {[%clk 0:00:16]}  Kc5 {[%clk 0:00:02]} 56. c3 {[%clk 0:00:16]}  Kc4 {[%clk 0:00:02]} 57. a4 {[%clk 0:00:16]}  Kc5 {[%clk 0:00:02]} 58. Kg4 {[%clk 0:00:14]}  Kc4 {[%clk 0:00:02]} 59. Kf5 {[%clk 0:00:13]}  Kc5 {[%clk 0:00:03]} 60. Ke4 {[%clk 0:00:13]}  Kb6 {[%clk 0:00:03]} 61. c4 {[%clk 0:00:13]}  Kc5 {[%clk 0:00:02]} 62. a5 {[%clk 0:00:12]}  g4 {[%clk 0:00:02]} 63. Kf4 {[%clk 0:00:13]}  f5 {[%clk 0:00:03]} 64. Kg3 {[%clk 0:00:13]}  Kc6 {[%clk 0:00:03]} 65. Kf4 {[%clk 0:00:13]}  Kc5 {[%clk 0:00:04]} 66. Kg3 {[%clk 0:00:13]}  Kc6 {[%clk 0:00:05]} 67. Kh4 {[%clk 0:00:14]}  Kc5 {[%clk 0:00:05]} 68. Kg3 {[%clk 0:00:14]} 1/2-1/2

[Event "December 12 Early 2023"]
[Site "https://www.chess.com"]
[Date "2023.12.12"]
[Round "11"]
[White "Garrido, Denis"]
[Black "Koridze, Lile"]
[Result "1-0"]
[Board "104"]
[TimeControl "180+1"]
[WhiteFideId "601217"]
[BlackFideId "13612514"]
[WhiteElo "2428"]
[BlackElo "2358"]
[WhiteTeam "FRA"]
[BlackTeam "GEO"]
[WhiteClock "0:01:12"]
[BlackClock "0:01:17"]

1. d4 {[%clk 0:02:56]}  Nf6 {[%clk 0:02:57]} 2. c4 {[%clk 0:02:55]}  e6 {[%clk 0:02:56]} 3. Nc3 {[%clk 0:02:55]}  Bb4 {[%clk 0:02:56]} 4. e3 {[%clk 0:02:54]}  O-O {[%clk 0:02:56]} 5. Bd3 {[%clk 0:02:54]}  d5 {[%clk 0:02:56]} 6. cxd5 {[%clk 0:02:54]}  exd5 {[%clk 0:02:55]} 7. Ne2 {[%clk 0:02:55]}  c5 {[%clk 0:02:51]} 8. O-O {[%clk 0:02:53]}  Nc6 {[%clk 0:02:43]} 9. a3 {[%clk 0:02:50]}  cxd4 {[%clk 0:02:41]} 10. axb4 {[%clk 0:02:33]}  dxc3 {[%clk 0:02:41]} 11. b5 {[%clk 0:02:18]}  cxb2 {[%clk 0:02:38]} 12. Bxb2 {[%clk 0:02:17]}  Nb8 {[%clk 0:02:35]} 13. Nf4 {[%clk 0:02:12]}  Nbd7 {[%clk 0:02:23]} 14. Bc2 {[%clk 0:02:06]}  Nb6 {[%clk 0:02:18]} 15. Qd3 {[%clk 0:02:01]}  Re8 {[%clk 0:02:09]} 16. Rfd1 {[%clk 0:01:39]}  h6 {[%clk 0:01:32]} 17. Nh5 {[%clk 0:01:12]}  Nxh5 {[%clk 0:01:19]} 18. Qh7+ {[%clk 0:01:11]}  Kf8 {[%clk 0:01:19]} 19. Ba3+ {[%clk 0:01:12]}  Re7 {[%clk 0:01:17]} 20. Qh8# {[%clk 0:01:12]} 1-0

[Event "December 12 Early 2023"]
[Site "https://www.chess.com"]
[Date "2023.12.12"]
[Round "11"]
[White "Tarasova, Viktoriya"]
[Black "Porozhnyak, Maya"]
[Result "0-1"]
[Board "107"]
[TimeControl "180+1"]
[WhiteFideId "4175840"]
[BlackFideId "34115843"]
[WhiteElo "2321"]
[BlackElo "2425"]
[WhiteTeam "RUS"]
[BlackTeam "RUS"]
[WhiteClock "0:00:06"]
[BlackClock "0:00:12"]

1. d4 {[%clk 0:03:00]}  c5 {[%clk 0:03:00]} 2. d5 {[%clk 0:03:00]}  g6 {[%clk 0:03:01]} 3. Nc3 {[%clk 0:03:00]}  Bg7 {[%clk 0:03:01]} 4. e4 {[%clk 0:03:01]}  a6 {[%clk 0:03:01]} 5. a4 {[%clk 0:03:00]}  d6 {[%clk 0:03:02]} 6. Nf3 {[%clk 0:02:57]}  Bg4 {[%clk 0:03:01]} 7. Be2 {[%clk 0:02:57]}  Bxf3 {[%clk 0:03:01]} 8. Bxf3 {[%clk 0:02:58]}  b6 {[%clk 0:03:01]} 9. O-O {[%clk 0:02:57]}  Nd7 {[%clk 0:03:01]} 10. Be2 {[%clk 0:02:58]}  Ngf6 {[%clk 0:03:01]} 11. Be3 {[%clk 0:02:57]}  O-O {[%clk 0:03:01]} 12. Qd2 {[%clk 0:02:57]}  Re8 {[%clk 0:02:55]} 13. h3 {[%clk 0:02:56]}  Qc7 {[%clk 0:02:42]} 14. Rad1 {[%clk 0:02:54]}  Reb8 {[%clk 0:02:42]} 15. f4 {[%clk 0:02:54]}  Qc8 {[%clk 0:02:29]} 16. b3 {[%clk 0:02:43]}  Ne8 {[%clk 0:02:26]} 17. Bd3 {[%clk 0:02:35]}  Nc7 {[%clk 0:02:25]} 18. Be2 {[%clk 0:02:02]}  b5 {[%clk 0:02:26]} 19. axb5 {[%clk 0:02:00]}  axb5 {[%clk 0:02:27]} 20. Bg4 {[%clk 0:01:55]}  Qd8 {[%clk 0:02:17]} 21. Ne2 {[%clk 0:01:45]}  Ra2 {[%clk 0:02:04]} 22. Nc1 {[%clk 0:01:42]}  Ra3 {[%clk 0:01:57]} 23. Nd3 {[%clk 0:01:38]}  b4 {[%clk 0:01:54]} 24. e5 {[%clk 0:01:30]}  Nxd5 {[%clk 0:01:51]} 25. Bxd7 {[%clk 0:01:24]}  Nxe3 {[%clk 0:01:43]} 26. Qxe3 {[%clk 0:01:11]}  Qxd7 {[%clk 0:01:42]} 27. f5 {[%clk 0:00:58]}  Qa7 {[%clk 0:01:23]} 28. fxg6 {[%clk 0:00:13]}  hxg6 {[%clk 0:01:18]} 29. Kh1 {[%clk 0:00:13]}  Ra2 {[%clk 0:00:53]} 30. Qf3 {[%clk 0:00:11]}  Rf8 {[%clk 0:00:51]} 31. Qe2 {[%clk 0:00:10]}  dxe5 {[%clk 0:00:37]} 32. Nxe5 {[%clk 0:00:10]}  Bxe5 {[%clk 0:00:38]} 33. Qxe5 {[%clk 0:00:11]}  Rxc2 {[%clk 0:00:37]} 34. Rd5 {[%clk 0:00:09]}  Qa2 {[%clk 0:00:21]} 35. Qg5 {[%clk 0:00:08]}  Qxb3 {[%clk 0:00:18]} 36. h4 {[%clk 0:00:08]}  Qc4 {[%clk 0:00:12]} 37. h5 {[%clk 0:00:08]}  Qxf1+ {[%clk 0:00:12]} 38. Kh2 {[%clk 0:00:08]}  Rxg2+ {[%clk 0:00:09]} 39. Qxg2 {[%clk 0:00:08]}  Qxg2+ {[%clk 0:00:10]} 40. Kxg2 {[%clk 0:00:08]}  gxh5 {[%clk 0:00:10]} 41. Rxc5 {[%clk 0:00:07]}  Rb8 {[%clk 0:00:10]} 42. Rxh5 {[%clk 0:00:07]}  f6 {[%clk 0:00:10]} 43. Rh1 {[%clk 0:00:07]}  b3 {[%clk 0:00:10]} 44. Rb1 {[%clk 0:00:07]}  b2 {[%clk 0:00:11]} 45. Kf3 {[%clk 0:00:08]}  Kf7 {[%clk 0:00:11]} 46. Kf4 {[%clk 0:00:09]}  e5+ {[%clk 0:00:12]} 47. Ke4 {[%clk 0:00:06]}  Rb4+ {[%clk 0:00:12]} 0-1

[Event "December 12 Early 2023"]
[Site "https://www.chess.com"]
[Date "2023.12.12"]
[Round "11"]
[White "Munoz Sanchez, Miguel"]
[Black "Thorfinnsson, Bjorn"]
[Result "0-1"]
[Board "111"]
[TimeControl "180+1"]
[WhiteFideId "3600734"]
[BlackFideId "2300982"]
[WhiteElo "2335"]
[BlackElo "2572"]
[WhiteTeam "ECU"]
[BlackTeam "ISL"]
[WhiteClock "0:00:31"]
[BlackClock "0:01:18"]

1. e4 {[%clk 0:03:00]}  e5 {[%clk 0:03:00]} 2. Nf3 {[%clk 0:03:01]}  Nc6 {[%clk 0:03:00]} 3. d4 {[%clk 0:03:01]}  exd4 {[%clk 0:02:59]} 4. Bc4 {[%clk 0:03:02]}  Nf6 {[%clk 0:02:59]} 5. c3 {[%clk 0:03:02]}  dxc3 {[%clk 0:02:58]} 6. O-O {[%clk 0:02:59]}  d6 {[%clk 0:02:55]} 7. Qb3 {[%clk 0:02:54]}  Qd7 {[%clk 0:02:50]} 8. Nxc3 {[%clk 0:02:53]}  Na5 {[%clk 0:02:50]} 9. Qb4 {[%clk 0:02:50]}  Nxc4 {[%clk 0:02:50]} 10. Qxc4 {[%clk 0:02:51]}  Be7 {[%clk 0:02:50]} 11. Bg5 {[%clk 0:02:35]}  O-O {[%clk 0:02:46]} 12. Rad1 {[%clk 0:02:31]}  Ne8 {[%clk 0:02:35]} 13. Bxe7 {[%clk 0:02:28]}  Qxe7 {[%clk 0:02:35]} 14. Nd5 {[%clk 0:02:29]}  Qd8 {[%clk 0:02:35]} 15. e5 {[%clk 0:02:24]}  c6 {[%clk 0:02:31]} 16. Ne3 {[%clk 0:02:13]}  d5 {[%clk 0:02:31]} 17. Qf4 {[%clk 0:02:13]}  Nc7 {[%clk 0:02:30]} 18. Rfe1 {[%clk 0:02:05]}  Ne6 {[%clk 0:02:29]} 19. Qg3 {[%clk 0:02:05]}  g6 {[%clk 0:02:28]} 20. h4 {[%clk 0:02:05]}  h5 {[%clk 0:02:27]} 21. Nf5 {[%clk 0:02:03]}  Kh7 {[%clk 0:02:25]} 22. Nd6 {[%clk 0:02:03]}  b6 {[%clk 0:02:21]} 23. Re3 {[%clk 0:02:02]}  Bd7 {[%clk 0:02:20]} 24. Ng5+ {[%clk 0:02:02]}  Nxg5 {[%clk 0:02:19]} 25. hxg5 {[%clk 0:02:03]}  Be6 {[%clk 0:02:17]} 26. Rd4 {[%clk 0:01:58]}  c5 {[%clk 0:02:17]} 27. Rf4 {[%clk 0:01:58]}  d4 {[%clk 0:02:15]} 28. Ra3 {[%clk 0:01:57]}  Qe7 {[%clk 0:02:10]} 29. Rf6 {[%clk 0:01:56]}  c4 {[%clk 0:02:07]} 30. Raf3 {[%clk 0:01:53]}  d3 {[%clk 0:02:05]} 31. Qf4 {[%clk 0:01:53]}  Rad8 {[%clk 0:01:58]} 32. Qd2 {[%clk 0:01:39]}  Rxd6 {[%clk 0:01:54]} 33. exd6 {[%clk 0:01:38]}  Qxd6 {[%clk 0:01:55]} 34. g4 {[%clk 0:01:33]}  hxg4 {[%clk 0:01:48]} 35. R3f4 {[%clk 0:01:30]}  Qe5 {[%clk 0:01:36]} 36. Qb4 {[%clk 0:01:01]}  Kg7 {[%clk 0:01:31]} 37. Qe7 {[%clk 0:00:53]}  d2 {[%clk 0:01:25]} 38. Rxe6 {[%clk 0:00:40]}  d1=Q+ {[%clk 0:01:21]} 39. Kg2 {[%clk 0:00:31]}  Qxf4 {[%clk 0:01:18]} 0-1

[Event "December 12 Early 2023"]
[Site "https://www.chess.com"]
[Date "2023.12.12"]
[Round "11"]
[White "Luukkonen, Tommi"]
[Black "Kopczynski, Michal"]
[Result "0-1"]
[Board "112"]
[TimeControl "180+1"]
[WhiteFideId "501808"]
[BlackFideId "1124200"]
[WhiteElo "2321"]
[BlackElo "2522"]
[WhiteTeam "FIN"]
[BlackTeam "POL"]
[WhiteClock "0:00:10"]
[BlackClock "0:01:38"]

1. e4 {[%clk 0:03:00]}  b6 {[%clk 0:03:00]} 2. d4 {[%clk 0:03:00]}  Bb7 {[%clk 0:02:59]} 3. Nc3 {[%clk 0:03:00]}  e6 {[%clk 0:03:00]} 4. a3 {[%clk 0:03:00]}  Nf6 {[%clk 0:03:00]} 5. Bd3 {[%clk 0:02:59]}  d5 {[%clk 0:03:01]} 6. e5 {[%clk 0:02:58]}  Nfd7 {[%clk 0:03:01]} 7. Nce2 {[%clk 0:02:57]}  c5 {[%clk 0:03:00]} 8. c3 {[%clk 0:02:58]}  Nc6 {[%clk 0:03:01]} 9. Nf3 {[%clk 0:02:57]}  Qc7 {[%clk 0:03:01]} 10. O-O {[%clk 0:02:54]}  O-O-O {[%clk 0:03:02]} 11. b4 {[%clk 0:02:54]}  c4 {[%clk 0:03:02]} 12. Bc2 {[%clk 0:02:53]}  h6 {[%clk 0:03:03]} 13. a4 {[%clk 0:02:46]}  f5 {[%clk 0:03:03]} 14. exf6 {[%clk 0:02:41]}  gxf6 {[%clk 0:03:04]} 15. Nf4 {[%clk 0:02:38]}  Re8 {[%clk 0:03:03]} 16. Re1 {[%clk 0:02:33]}  Nd8 {[%clk 0:03:01]} 17. a5 {[%clk 0:02:27]}  b5 {[%clk 0:03:00]} 18. a6 {[%clk 0:02:27]}  Bc6 {[%clk 0:03:00]} 19. Ng6 {[%clk 0:02:18]}  Rg8 {[%clk 0:03:00]} 20. Bf4 {[%clk 0:02:16]}  Bd6 {[%clk 0:02:58]} 21. Qd2 {[%clk 0:02:03]}  Nf7 {[%clk 0:02:52]} 22. Bxd6 {[%clk 0:02:00]}  Qxd6 {[%clk 0:02:52]} 23. Nf4 {[%clk 0:01:52]}  e5 {[%clk 0:02:51]} 24. Nh5 {[%clk 0:01:48]}  e4 {[%clk 0:02:47]} 25. Nh4 {[%clk 0:01:46]}  Ng5 {[%clk 0:02:45]} 26. Ng3 {[%clk 0:01:45]}  Nf8 {[%clk 0:02:41]} 27. Nhf5 {[%clk 0:01:43]}  Qe6 {[%clk 0:02:40]} 28. f3 {[%clk 0:01:42]}  Qxf5 {[%clk 0:02:35]} 29. fxe4 {[%clk 0:01:27]}  Qd7 {[%clk 0:02:26]} 30. Qf4 {[%clk 0:01:08]}  Ng6 {[%clk 0:02:18]} 31. Qf2 {[%clk 0:00:43]}  dxe4 {[%clk 0:02:16]} 32. d5 {[%clk 0:00:42]}  Bxd5 {[%clk 0:02:08]} 33. Rad1 {[%clk 0:00:41]}  Ne5 {[%clk 0:02:06]} 34. Rxd5 {[%clk 0:00:34]}  Qxd5 {[%clk 0:02:07]} 35. Qxa7 {[%clk 0:00:34]}  Nd3 {[%clk 0:01:51]} 36. Rf1 {[%clk 0:00:22]}  Rgf8 {[%clk 0:01:45]} 37. Qb6 {[%clk 0:00:18]}  Re6 {[%clk 0:01:44]} 38. Qa5 {[%clk 0:00:16]}  Rf7 {[%clk 0:01:42]} 39. a7 {[%clk 0:00:15]}  Qa8 {[%clk 0:01:42]} 40. Nf5 {[%clk 0:00:10]}  Qxa7+ {[%clk 0:01:38]} 0-1

[Event "December 12 Early 2023"]
[Site "https://www.chess.com"]
[Date "2023.12.12"]
[Round "11"]
[White "Rose, Felix"]
[Black "Chernomordik, Pavel"]
[Result "1-0"]
[Board "113"]
[TimeControl "180+1"]
[WhiteFideId "5105722"]
[BlackFideId "2804530"]
[WhiteElo "2300"]
[BlackElo "2463"]
[WhiteTeam "MEX"]
[BlackTeam "ISR"]
[WhiteClock "0:00:09"]
[BlackClock "0:00:14"]

1. e4 {[%clk 0:03:00]}  g6 {[%clk 0:02:58]} 2. d4 {[%clk 0:03:00]}  Bg7 {[%clk 0:02:58]} 3. Nf3 {[%clk 0:03:00]}  d6 {[%clk 0:02:57]} 4. Nc3 {[%clk 0:03:00]}  a6 {[%clk 0:02:57]} 5. a4 {[%clk 0:03:00]}  b6 {[%clk 0:02:57]} 6. Be3 {[%clk 0:02:58]}  e6 {[%clk 0:02:54]} 7. Qd2 {[%clk 0:02:53]}  h6 {[%clk 0:02:53]} 8. h3 {[%clk 0:02:52]}  Bb7 {[%clk 0:02:53]} 9. Bd3 {[%clk 0:02:50]}  Nd7 {[%clk 0:02:52]} 10. O-O {[%clk 0:02:44]}  Ne7 {[%clk 0:02:52]} 11. Ne2 {[%clk 0:02:29]}  c5 {[%clk 0:02:42]} 12. c3 {[%clk 0:02:27]}  Nf6 {[%clk 0:02:41]} 13. Ng3 {[%clk 0:02:19]}  Qc7 {[%clk 0:02:31]} 14. b4 {[%clk 0:02:11]}  c4 {[%clk 0:02:28]} 15. Bc2 {[%clk 0:02:10]}  O-O-O {[%clk 0:02:24]} 16. a5 {[%clk 0:02:04]}  b5 {[%clk 0:02:23]} 17. d5 {[%clk 0:02:04]}  Qd7 {[%clk 0:02:10]} 18. dxe6 {[%clk 0:02:02]}  fxe6 {[%clk 0:02:05]} 19. Bb6 {[%clk 0:02:00]}  Rdf8 {[%clk 0:02:03]} 20. Rad1 {[%clk 0:01:56]}  d5 {[%clk 0:02:02]} 21. exd5 {[%clk 0:01:37]}  Nfxd5 {[%clk 0:01:59]} 22. Bd4 {[%clk 0:01:29]}  Nf5 {[%clk 0:01:53]} 23. Ne5 {[%clk 0:01:14]}  Qe8 {[%clk 0:01:28]} 24. Rfe1 {[%clk 0:00:53]}  Rhg8 {[%clk 0:01:12]} 25. Ne4 {[%clk 0:00:41]}  Kb8 {[%clk 0:01:03]} 26. Nc5 {[%clk 0:00:21]}  Bc8 {[%clk 0:01:00]} 27. Bxf5 {[%clk 0:00:19]}  Rxf5 {[%clk 0:00:52]} 28. Nf3 {[%clk 0:00:18]}  Rxf3 {[%clk 0:00:41]} 29. gxf3 {[%clk 0:00:16]}  e5 {[%clk 0:00:41]} 30. Bxe5+ {[%clk 0:00:14]}  Bxe5 {[%clk 0:00:41]} 31. Qxd5 {[%clk 0:00:14]}  Rf8 {[%clk 0:00:24]} 32. Qxe5+ {[%clk 0:00:13]}  Qxe5 {[%clk 0:00:21]} 33. Rxe5 {[%clk 0:00:14]}  Rxf3 {[%clk 0:00:21]} 34. Rd8 {[%clk 0:00:12]}  Kc7 {[%clk 0:00:20]} 35. Rg8 {[%clk 0:00:10]}  Rxc3 {[%clk 0:00:18]} 36. Rxg6 {[%clk 0:00:10]}  Bxh3 {[%clk 0:00:16]} 37. Re7+ {[%clk 0:00:09]}  Kb8 {[%clk 0:00:15]} 38. Nxa6+ {[%clk 0:00:09]}  Kc8 {[%clk 0:00:14]} 39. Rg8# {[%clk 0:00:09]} 1-0